bitfinex/quotes_BTCUSD_20220103
["timestamp","ask_amount","ask_price","bid_price","bid_amount"]
[1641186742108,2.23055983,46831.0,46830.0,0.64061]
[1641186742309,2.31600892,46831.0,46830.0,0.64061]
[1641186742541,2.23055983,46831.0,46830.0,0.64061]
[1641186742741,2.31602444,46831.0,46830.0,0.64061]
[1641186742941,2.23055983,46831.0,46830.0,0.64061]
[1641186743342,2.31602444,46831.0,46830.0,0.64061]
[1641186743542,2.23055983,46831.0,46830.0,0.64061]
[1641186744345,2.31601531,46831.0,46830.0,0.64061]
[1641186744742,2.23055983,46831.0,46830.0,0.64061]
[1641186744943,2.26326607,46831.0,46830.0,0.64061]
[1641186745143,2.34872155,46831.0,46830.0,0.64061]
[1641186745342,1.05237324,46831.0,46830.0,0.64061]
[1641186745542,1.13782872,46831.0,46830.0,0.64061]
[1641186745842,2.3488107,46831.0,46830.0,0.64061]
[1641186746042,2.31610446,46831.0,46830.0,0.64061]
[1641186746497,2.23064898,46831.0,46830.0,0.64061]
[1641186746698,2.31610446,46831.0,46830.0,0.64061]
[1641186747499,2.91638634,46831.0,46830.0,0.3868764]
[1641186747700,2.91638634,46831.0,46823.0,0.21]
[1641186747701,0.00128282,46825.0,46823.0,0.21]
[1641186747899,0.817694,46824.0,46823.0,0.21]
[1641186748103,0.967694,46824.0,46823.0,0.21]
[1641186748502,1.05315861,46824.0,46823.0,0.42336969]
[1641186749200,2.26414059,46824.0,46823.0,0.42336969]
[1641186754701,0.160254,46820.0,46815.0,0.21505962]
[1641186754898,0.0479,46819.0,46815.0,0.21505962]
[1641186755198,0.117378,46818.0,46816.0,0.64079]
[1641186755398,0.0479,46817.0,46816.0,0.64079]
[1641186755796,0.165278,46817.0,46816.0,0.64079]
[1641186755999,1.52967698,46817.0,46816.0,0.64079]
[1641186756399,1.62967698,46817.0,46816.0,0.64079]
[1641186756600,1.62967698,46817.0,46816.0,0.85079]
[1641186757548,1.71414412,46817.0,46816.0,0.423385]
[1641186757746,1.79962516,46817.0,46816.0,0.423385]
[1641186759249,1.79962516,46817.0,46815.0,0.206822]
[1641186759549,0.1994398,46816.0,46815.0,0.206822]
[1641186759751,0.24857504,46816.0,46815.0,0.847632]
[1641186760551,1.45955702,46816.0,46815.0,0.847632]
[1641186760751,1.55955702,46816.0,46815.0,0.847632]
[1641186763109,1.55955702,46816.0,46815.0,0.420214]
[1641186765954,2.52274568,46816.0,46815.0,0.420214]
[1641186767661,2.52274568,46816.0,46815.0,0.630214]
[1641186768705,1.55955702,46816.0,46815.0,0.630214]
[1641186769500,2.52274568,46816.0,46815.0,0.630214]
[1641186773343,2.42274568,46816.0,46815.0,0.630214]
[1641186774347,1.45955702,46816.0,46815.0,0.630214]
[1641186774647,1.55955702,46816.0,46815.0,0.630214]
[1641186774848,1.65955702,46816.0,46815.0,0.630214]
[1641186776213,1.05065934,46816.0,46815.0,0.630214]
[1641186784797,0.44857504,46816.0,46815.0,0.630214]
[1641186784999,1.1710762,46816.0,46815.0,0.630214]
[1641186785500,1.16984096,46816.0,46815.0,0.630214]
[1641186789251,2.62185783,46816.0,46815.0,0.630214]
[1641186805849,2.57185783,46816.0,46815.0,0.630214]
[1641186809104,2.62185783,46816.0,46815.0,0.630214]
[1641186817964,1.65866917,46816.0,46815.0,0.630214]
[1641186818663,2.62185783,46816.0,46815.0,0.630214]
[1641186825563,0.82,46815.0,46812.0,0.11531349]
[1641186825764,2.18288188,46813.0,46812.0,0.11531349]
[1641186825960,1.20099145,46813.0,46812.0,0.11531349]
[1641186826160,1.30099145,46813.0,46812.0,0.32870549]
[1641186826561,2.51232082,46813.0,46812.0,0.32870549]
[1641186826760,0.2467521,46805.0,46802.0,0.001]
[1641186826962,0.154766,46804.0,46802.0,0.001]
[1641186827162,0.101333,46804.0,46802.0,0.34978726]
[1641186827361,0.101333,46804.0,46802.0,0.001]
[1641186828060,0.20819619,46804.0,46803.0,0.64098]
[1641186828261,0.20819619,46804.0,46803.0,0.96516671]
[1641186829113,1.41974583,46804.0,46803.0,0.96516671]
[1641186829514,1.51974583,46804.0,46803.0,0.96516671]
[1641186831815,1.53574583,46804.0,46803.0,0.96516671]
[1641186832468,1.53574583,46804.0,46803.0,0.64098]
[1641186833069,0.32419619,46804.0,46803.0,0.64098]
[1641186833468,0.22419619,46804.0,46803.0,0.64098]
[1641186833670,0.37419619,46804.0,46803.0,0.64098]
[1641186834573,1.48576668,46804.0,46803.0,0.64098]
[1641186834869,1.70314468,46804.0,46803.0,0.64098]
[1641186835070,0.49157419,46804.0,46803.0,0.64098]
[1641186835373,1.68714468,46804.0,46803.0,0.64098]
[1641186835969,1.70314468,46804.0,46803.0,0.64098]
[1641186837436,1.68714468,46804.0,46803.0,0.64098]
[1641186837839,1.70314468,46804.0,46803.0,0.64098]
[1641186839436,1.68714468,46804.0,46803.0,0.64098]
[1641186839836,1.70314468,46804.0,46803.0,0.64098]
[1641186840258,1.70314468,46804.0,46803.0,0.95860786]
[1641186840756,1.59971368,46804.0,46803.0,0.95860786]
[1641186841357,1.58371368,46804.0,46803.0,0.95860786]
[1641186841559,0.37214319,46804.0,46803.0,0.64098]
[1641186841758,0.30476519,46804.0,46803.0,0.64098]
[1641186841959,0.22076519,46804.0,46803.0,0.64098]
[1641186842158,1.53232383,46804.0,46803.0,0.64098]
[1641186842357,1.64970183,46804.0,46803.0,0.64098]
[1641186842758,0.38814319,46804.0,46803.0,0.64098]
[1641186843359,1.36632383,46804.0,46803.0,0.64098]
[1641186843560,1.46632383,46804.0,46803.0,0.64098]
[1641186843805,0.27076519,46804.0,46803.0,0.64098]
[1641186844007,1.48232383,46804.0,46803.0,0.64098]
[1641186844605,0.27076519,46804.0,46803.0,0.64098]
[1641186845207,1.38232383,46804.0,46803.0,0.64098]
[1641186845404,1.46632383,46804.0,46803.0,0.64098]
[1641186845607,0.37214319,46804.0,46803.0,0.64098]
[1641186846008,1.58370183,46804.0,46803.0,0.64098]
[1641186846609,0.37214319,46804.0,46803.0,0.64098]
[1641186847008,0.27214319,46804.0,46803.0,0.64098]
[1641186847210,1.58370183,46804.0,46803.0,0.64098]
[1641186847856,0.37214319,46804.0,46803.0,0.64098]
[1641186848253,0.27214319,46804.0,46803.0,0.64098]
[1641186848460,1.58370183,46804.0,46803.0,0.64098]
[1641186849456,1.48370183,46804.0,46803.0,0.64098]
[1641186850960,1.63370183,46804.0,46803.0,0.64098]
[1641186851902,1.68370183,46804.0,46803.0,0.64098]
[1641186852102,1.48370183,46804.0,46803.0,0.64098]
[1641186853607,1.58370183,46804.0,46803.0,0.64098]
[1641186853805,1.63370183,46804.0,46803.0,0.64098]
[1641186854007,1.68370183,46804.0,46803.0,0.64098]
[1641186855454,1.48370183,46804.0,46803.0,0.64098]
[1641186855655,1.58370183,46804.0,46803.0,0.64098]
[1641186855854,1.63470183,46804.0,46803.0,0.64098]
[1641186856757,1.02599774,46804.0,46803.0,0.64098]
[1641186857357,1.02499774,46804.0,46803.0,0.64098]
[1641186857955,1.07599774,46804.0,46803.0,0.64098]
[1641186858716,1.68463458,46804.0,46803.0,0.64098]
[1641186859407,1.68363458,46804.0,46803.0,0.64098]
[1641186859806,1.68463458,46804.0,46803.0,0.64098]
[1641186861111,1.6823925,46804.0,46803.0,0.64098]
[1641186861607,1.6813925,46804.0,46803.0,0.64098]
[1641186861806,1.6323925,46804.0,46803.0,0.64098]
[1641186862671,1.6823925,46804.0,46803.0,0.64098]
[1641186863467,1.6813925,46804.0,46803.0,0.64098]
[1641186863871,1.6823925,46804.0,46803.0,0.64098]
[1641186865371,1.6813925,46804.0,46803.0,0.64098]
[1641186865972,1.6823925,46804.0,46803.0,0.64098]
[1641186867404,1.6813925,46804.0,46803.0,0.64098]
[1641186867806,1.6823925,46804.0,46803.0,0.64098]
[1641186872058,1.5823925,46804.0,46803.0,0.64098]
[1641186872360,1.4823925,46804.0,46803.0,0.64098]
[1641186873722,1.6823925,46804.0,46803.0,0.64098]
[1641186875322,1.77192689,46804.0,46803.0,0.64098]
[1641186875722,1.6823925,46804.0,46803.0,0.64098]
[1641186876925,1.77192689,46804.0,46803.0,0.64098]
[1641186882321,1.68213535,46804.0,46803.0,0.64098]
[1641186882722,1.55713535,46804.0,46803.0,0.64098]
[1641186882921,1.65713535,46804.0,46803.0,0.64098]
[1641186883321,1.65613535,46804.0,46803.0,0.64098]
[1641186883523,1.74566974,46804.0,46803.0,0.64098]
[1641186883726,1.55613535,46804.0,46803.0,0.64098]
[1641186884024,1.55813535,46804.0,46803.0,0.64098]
[1641186885466,1.55613535,46804.0,46803.0,0.64098]
[1641186885864,1.55813535,46804.0,46803.0,0.64098]
[1641186886064,1.60813535,46804.0,46803.0,0.64098]
[1641186887466,1.60613535,46804.0,46803.0,0.64098]
[1641186887968,1.55813535,46804.0,46803.0,0.64098]
[1641186889311,1.55613535,46804.0,46803.0,0.64098]
[1641186889813,1.60613535,46804.0,46803.0,0.64098]
[1641186890011,1.60813535,46804.0,46803.0,0.64098]
[1641186891314,1.60613535,46804.0,46803.0,0.64098]
[1641186891913,1.60813535,46804.0,46803.0,0.64098]
[1641186892119,1.55813535,46804.0,46803.0,0.64098]
[1641186893366,1.55613535,46804.0,46803.0,0.64098]
[1641186893967,1.55813535,46804.0,46803.0,0.64098]
[1641186895369,1.55613535,46804.0,46803.0,0.64098]
[1641186895768,1.60613535,46804.0,46803.0,0.64098]
[1641186895969,1.60813535,46804.0,46803.0,0.64098]
[1641186897420,1.60613535,46804.0,46803.0,0.64098]
[1641186897821,1.6078782,46804.0,46803.0,0.64098]
[1641186898922,1.6578782,46804.0,46803.0,0.64098]
[1641186899322,1.6578782,46804.0,46803.0,0.39502423]
[1641186899323,2.8356582,46804.0,46803.0,0.39502423]
[1641186899526,0.160331,46803.0,46802.0,0.001]
[1641186899723,0.170824,46802.0,46801.0,0.0001]
[1641186899988,0.92239961,46802.0,46801.0,0.0001]
[1641186900184,1.07239961,46802.0,46801.0,0.64111]
[1641186900385,1.13310091,46802.0,46801.0,0.64111]
[1641186900685,2.3445923,46802.0,46801.0,0.64111]
[1641186902889,0.94546425,46807.0,46803.0,0.30338779]
[1641186903091,0.94546425,46807.0,46804.0,0.64097]
[1641186903589,0.053431,46806.0,46804.0,0.9903581]
[1641186903814,0.053431,46806.0,46804.0,0.64097]
[1641186904017,0.0045,46813.0,46805.0,0.346813]
[1641186904217,0.00831897,46816.0,46812.0,0.31446975]
[1641186904417,0.02883309,46813.0,46812.0,0.31446975]
[1641186904617,0.02883309,46813.0,46812.0,0.95531975]
[1641186905615,0.02883309,46813.0,46812.0,0.64085]
[1641186909483,0.02883309,46813.0,46812.0,0.64462152]
[1641186910289,0.02938247,46813.0,46812.0,0.64462152]
[1641186918075,1.24082514,46813.0,46812.0,0.64462152]
[1641186918473,0.12938247,46813.0,46812.0,0.64462152]
[1641186918917,1.34082514,46813.0,46812.0,0.64462152]
[1641186921719,0.12938247,46813.0,46812.0,0.64462152]
[1641186922021,0.02938247,46813.0,46812.0,0.64462152]
[1641186922777,1.24077907,46813.0,46812.0,0.64462152]
[1641186923180,1.34077907,46813.0,46812.0,0.64462152]
[1641186929029,1.39077907,46813.0,46812.0,0.64462152]
[1641186929228,1.44077907,46813.0,46812.0,0.64462152]
[1641186931182,0.78036089,46813.0,46812.0,0.64462152]
[1641186931978,0.17938247,46813.0,46812.0,0.64462152]
[1641186932180,0.07938247,46813.0,46812.0,0.64462152]
[1641186932381,0.02938247,46813.0,46812.0,0.64462152]
[1641186937484,0.3384998,46813.0,46812.0,0.64462152]
[1641186937686,0.12938247,46813.0,46812.0,0.64462152]
[1641186938486,0.73036089,46813.0,46812.0,0.64462152]
[1641186939289,0.12938247,46813.0,46812.0,0.64462152]
[1641186939690,0.02938247,46813.0,46812.0,0.64462152]
[1641186945995,1.24077149,46813.0,46812.0,0.64462152]
[1641186946195,1.34077149,46813.0,46812.0,0.64462152]
[1641186951127,1.24077149,46813.0,46812.0,0.64462152]
[1641186951527,1.34077149,46813.0,46812.0,0.64462152]
[1641186951928,1.39077149,46813.0,46812.0,0.64462152]
[1641186959625,1.48867149,46813.0,46812.0,0.64462152]
[1641186960092,2.82088667,46813.0,46812.0,0.21716952]
[1641186960294,1.68988667,46813.0,46812.0,0.21716952]
[1641186960691,0.3018334,46811.0,46807.0,0.00831881]
[1641186960893,0.02883309,46808.0,46807.0,0.00831881]
[1641186961093,0.07673309,46808.0,46807.0,0.64923881]
[1641186961592,1.28812211,46808.0,46807.0,0.64923881]
[1641186961999,1.58812211,46808.0,46807.0,0.64923881]
[1641186962193,1.38812211,46808.0,46807.0,0.64092]
[1641186962996,1.67947781,46808.0,46807.0,0.64092]
[1641186963395,1.38812211,46808.0,46807.0,0.64092]
[1641186964238,1.35928902,46808.0,46807.0,0.64092]
[1641186964836,1.38812211,46808.0,46807.0,0.64092]
[1641186965036,1.35928902,46808.0,46807.0,0.64092]
[1641186965237,1.38812211,46808.0,46807.0,0.64092]
[1641186968873,1.43812211,46808.0,46807.0,0.64092]
[1641186969075,1.48812211,46808.0,46807.0,0.64092]
[1641186970277,1.48867149,46808.0,46807.0,0.64092]
[1641186972031,1.43867149,46808.0,46807.0,0.64092]
[1641186973030,1.48867149,46808.0,46807.0,0.64092]
[1641186974833,1.43867149,46808.0,46807.0,0.64092]
[1641186975884,1.48867149,46808.0,46807.0,0.64092]
[1641186976483,2.45070833,46808.0,46807.0,0.64092]
[1641186979633,1.48867149,46808.0,46807.0,0.64092]
[1641186980033,1.48989157,46808.0,46807.0,0.64092]
[1641186987233,1.48867149,46808.0,46807.0,0.64092]
[1641186996133,1.2598384,46808.0,46807.0,0.64092]
[1641186996737,0.76950092,46808.0,46807.0,0.64092]
[1641186997137,0.79833401,46808.0,46807.0,0.64092]
[1641186998181,0.07728247,46808.0,46807.0,0.64092]
[1641186999179,0.12728247,46808.0,46807.0,0.64092]
[1641186999979,0.18070637,46808.0,46807.0,0.64092]
[1641187000379,1.39219219,46808.0,46807.0,0.64092]
[1641187000578,1.49219219,46808.0,46807.0,0.64092]
[1641187001627,1.49219219,46808.0,46807.0,0.637781]
[1641187001829,1.43876829,46808.0,46807.0,0.637781]
[1641187002834,1.4099352,46808.0,46807.0,0.637781]
[1641187004232,0.19844938,46808.0,46807.0,0.637781]
[1641187004532,0.09844938,46808.0,46807.0,0.637781]
[1641187004979,0.05054938,46808.0,46807.0,0.637781]
[1641187005381,0.00054938,46808.0,46807.0,0.637781]
[1641187005780,1.21197109,46808.0,46807.0,0.637781]
[1641187006183,1.31197109,46808.0,46807.0,0.637781]
[1641187007883,0.10054938,46808.0,46807.0,0.637781]
[1641187008083,0.00054938,46808.0,46807.0,0.637781]
[1641187008287,1.21196892,46808.0,46807.0,0.637781]
[1641187008751,1.31196892,46808.0,46807.0,0.637781]
[1641187013580,1.66728665,46808.0,46807.0,0.637781]
[1641187013779,1.71728665,46808.0,46807.0,0.637781]
[1641187015179,1.41196892,46808.0,46807.0,0.637781]
[1641187015881,1.36196892,46808.0,46807.0,0.637781]
[1641187018338,1.67239886,46808.0,46807.0,0.637781]
[1641187018940,1.36196892,46808.0,46807.0,0.637781]
[1641187020780,1.67312051,46808.0,46807.0,0.637781]
[1641187021685,1.72312051,46808.0,46807.0,0.637781]
[1641187021881,1.41196892,46808.0,46807.0,0.637781]
[1641187022784,1.36196892,46808.0,46807.0,0.637781]
[1641187023828,1.41196892,46808.0,46807.0,0.637781]
[1641187025029,1.44080201,46808.0,46807.0,0.637781]
[1641187026030,2.40283885,46808.0,46807.0,0.637781]
[1641187026632,2.45073885,46808.0,46807.0,0.637781]
[1641187026835,1.48870201,46808.0,46807.0,0.637781]
[1641187027891,1.45986892,46808.0,46807.0,0.637781]
[1641187028890,1.48870201,46808.0,46807.0,0.637781]
[1641187031094,1.45986892,46808.0,46807.0,0.637781]
[1641187032030,1.48870201,46808.0,46807.0,0.637781]
[1641187033633,1.68998846,46808.0,46807.0,0.637781]
[1641187033833,1.68998846,46808.0,46807.0,0.623981]
[1641187034132,2.65277898,46808.0,46807.0,0.196482]
[1641187034535,0.48377862,46808.0,46807.0,0.196482]
[1641187034732,0.25621662,46803.0,46802.0,0.0083189]
[1641187034999,0.38294971,46803.0,46802.0,0.0083189]
[1641187035200,0.23016809,46803.0,46802.0,0.6493089]
[1641187035402,0.33016809,46803.0,46802.0,0.6493089]
[1641187036199,0.33016809,46803.0,46802.0,0.64099]
[1641187036400,2.49754979,46803.0,46802.0,0.64099]
[1641187036801,2.29754979,46803.0,46802.0,0.64099]
[1641187037003,1.26485454,46803.0,46802.0,0.64099]
[1641187037902,1.26485454,46803.0,46802.0,0.95098954]
[1641187038102,1.36485454,46803.0,46802.0,0.95098954]
[1641187038301,1.36485454,46803.0,46802.0,0.64099]
[1641187038502,1.26485454,46803.0,46802.0,0.64099]
[1641187039940,1.36485454,46803.0,46802.0,0.95872188]
[1641187040339,1.36540392,46803.0,46802.0,0.95872188]
[1641187040942,0.15398438,46803.0,46802.0,0.95872188]
[1641187041141,0.05398438,46803.0,46802.0,0.64099]
[1641187041341,0.08281747,46803.0,46802.0,0.64099]
[1641187041741,0.05398438,46803.0,46802.0,0.64099]
[1641187042988,0.08281747,46803.0,46802.0,0.64099]
[1641187044888,0.05398438,46803.0,46802.0,0.64099]
[1641187045289,1.26542533,46803.0,46802.0,0.64099]
[1641187045489,1.36542533,46803.0,46802.0,0.64099]
[1641187045690,0.15398438,46803.0,46802.0,0.64099]
[1641187045890,0.18281747,46803.0,46802.0,0.64099]
[1641187046090,1.39425951,46803.0,46802.0,0.64099]
[1641187046342,1.36542642,46803.0,46802.0,0.64099]
[1641187046547,1.21199142,46803.0,46802.0,0.95584431]
[1641187047141,0.00054938,46803.0,46802.0,0.95584431]
[1641187047342,0.71867245,46803.0,46802.0,0.95584431]
[1641187047542,0.71867245,46803.0,46802.0,1.24413747]
[1641187048143,0.00054938,46803.0,46802.0,1.24413747]
[1641187048741,0.71095626,46804.0,46802.0,1.59095047]
[1641187048942,0.24862932,46804.0,46803.0,0.78962392]
[1641187049145,0.00831898,46807.0,46806.0,0.00126801]
[1641187049343,0.00831898,46807.0,46806.0,0.98902101]
[1641187049742,0.00831898,46807.0,46806.0,1.25315485]
[1641187050195,0.95596216,46820.0,46806.0,1.25315485]
[1641187050399,0.05341,46819.0,46809.0,0.0534093]
[1641187050594,0.00831891,46811.0,46810.0,0.64089]
[1641187051196,0.00831891,46811.0,46810.0,0.97860345]
[1641187052295,0.05341,46814.0,46810.0,0.64089]
[1641187052696,0.05341,46814.0,46813.0,0.33004909]
[1641187052901,0.05341,46814.0,46813.0,0.97089909]
[1641187053195,0.05341,46814.0,46813.0,0.64085]
[1641187053397,1.26458389,46814.0,46813.0,0.64085]
[1641187053596,1.36458389,46814.0,46813.0,0.64085]
[1641187053849,0.15341,46814.0,46813.0,0.64085]
[1641187054055,0.053407,46817.0,46813.0,0.99173076]
[1641187054252,0.95596216,46820.0,46814.0,0.35088076]
[1641187054449,0.95596216,46820.0,46815.0,0.64082]
[1641187054949,0.95596216,46820.0,46816.0,0.45678914]
[1641187055149,0.053402,46821.0,46817.0,0.64079]
[1641187056151,0.053402,46821.0,46818.0,0.32851246]
[1641187056352,0.053402,46821.0,46819.0,0.64077]
[1641187057255,0.053402,46821.0,46820.0,0.35205898]
[1641187057495,0.05,46824.0,46820.0,0.99280898]
[1641187057496,0.0534,46824.0,46820.0,0.99280898]
[1641187057701,0.95596216,46825.0,46823.0,0.00120501]
[1641187057896,0.95596216,46825.0,46824.0,0.6407]
[1641187058105,0.95596216,46828.0,46824.0,0.99870909]
[1641187058496,0.95596216,46829.0,46827.0,0.26953935]
[1641187058698,0.95596216,46829.0,46828.0,0.9548589]
[1641187058895,0.95596216,46829.0,46828.0,0.64064]
[1641187059696,0.053393,46831.0,46828.0,0.64064]
[1641187064049,0.03046786,46833.0,46829.0,0.31746988]
[1641187064249,0.03046786,46833.0,46830.0,0.64061]
[1641187065184,0.95596216,46832.0,46830.0,0.64061]
[1641187065782,1.00935516,46832.0,46830.0,0.64061]
[1641187067585,1.10935516,46832.0,46830.0,0.64061]
[1641187068387,0.31990589,46831.0,46830.0,0.64061]
[1641187068593,0.41990589,46831.0,46830.0,0.64061]
[1641187069650,1.37931656,46831.0,46830.0,0.64061]
[1641187070752,1.63083919,46831.0,46830.0,0.64061]
[1641187073688,1.68083919,46831.0,46830.0,0.64061]
[1641187075987,2.64171712,46831.0,46830.0,0.64061]
[1641187078038,2.69171712,46831.0,46830.0,0.64061]
[1641187078439,2.64171712,46831.0,46830.0,0.64061]
[1641187078637,2.69171712,46831.0,46830.0,0.64061]
[1641187080197,1.68083919,46831.0,46830.0,0.64061]
[1641187083600,2.71845021,46831.0,46830.0,0.64061]
[1641187086536,2.00881263,46831.0,46830.0,0.64061]
[1641187086739,2.60781263,46831.0,46830.0,0.64061]
[1641187088391,0.29694283,46826.0,46821.0,0.00831849]
[1641187088594,0.3107455,46822.0,46821.0,0.00831849]
[1641187088793,0.3586455,46822.0,46821.0,0.00831849]
[1641187088992,0.5086455,46822.0,46821.0,0.64904849]
[1641187089191,0.47981241,46822.0,46821.0,0.64904849]
[1641187089791,1.69074571,46822.0,46821.0,0.64904849]
[1641187089993,1.7195788,46822.0,46821.0,0.64904849]
[1641187090192,1.7195788,46822.0,46821.0,0.64073]
[1641187090897,1.7729878,46822.0,46821.0,0.64073]
[1641187092738,1.7229878,46822.0,46821.0,0.64073]
[1641187093738,1.7228878,46822.0,46821.0,0.64073]
[1641187098201,1.69405471,46822.0,46821.0,0.64073]
[1641187099445,0.5119545,46822.0,46821.0,0.64073]
[1641187101646,0.5119545,46822.0,46821.0,0.63573]
[1641187103400,0.38312141,46822.0,46821.0,0.63573]
[1641187103899,0.48312141,46822.0,46821.0,0.63573]
[1641187104302,0.5119545,46822.0,46821.0,0.63573]
[1641187105304,0.48312141,46822.0,46821.0,0.63573]
[1641187105503,0.38312141,46822.0,46821.0,0.63573]
[1641187106259,1.12974415,46822.0,46821.0,0.63573]
[1641187106850,0.4119545,46822.0,46821.0,0.63573]
[1641187107951,1.12974415,46822.0,46821.0,0.63573]
[1641187108550,0.81909865,46822.0,46821.0,0.63573]
[1641187109354,0.201309,46822.0,46821.0,0.63573]
[1641187109654,0.94793174,46822.0,46821.0,0.63573]
[1641187110890,0.84793174,46822.0,46821.0,0.63573]
[1641187111090,0.81909865,46822.0,46821.0,0.63573]
[1641187111993,0.71778965,46822.0,46821.0,0.63573]
[1641187112393,0.59852554,46822.0,46821.0,0.63573]
[1641187112992,0.60713454,46823.0,46821.0,0.63573]
[1641187113194,0.60713454,46823.0,46821.0,0.91507916]
[1641187114253,0.008609,46823.0,46821.0,0.91507916]
[1641187114650,0.60713454,46823.0,46821.0,0.91507916]
[1641187116449,0.008609,46823.0,46821.0,0.91507916]
[1641187116650,0.60713454,46823.0,46821.0,0.91507916]
[1641187118194,0.60713454,46823.0,46822.0,0.32709276]
[1641187118394,0.60713454,46823.0,46822.0,0.97281276]
[1641187119296,0.008609,46823.0,46822.0,0.97281276]
[1641187120295,0.009609,46823.0,46822.0,0.97281276]
[1641187120498,0.009609,46823.0,46822.0,0.64572]
[1641187121451,0.008609,46823.0,46822.0,0.64572]
[1641187122255,0.009609,46823.0,46822.0,0.64572]
[1641187123351,0.008609,46823.0,46822.0,0.64572]
[1641187123954,0.008609,46823.0,46822.0,0.9607971]
[1641187124354,0.009609,46823.0,46822.0,0.9607971]
[1641187124555,0.009609,46823.0,46822.0,0.64572]
[1641187125493,0.008609,46823.0,46822.0,0.64572]
[1641187126896,0.008609,46823.0,46822.0,0.95948807]
[1641187127897,0.008609,46823.0,46822.0,0.64572]
[1641187131358,0.008609,46823.0,46822.0,0.97068974]
[1641187134990,0.008609,46823.0,46822.0,1.31750274]
[1641187135192,0.008609,46823.0,46822.0,0.992533]
[1641187137154,0.008609,46823.0,46822.0,1.37420515]
[1641187138255,0.008609,46823.0,46822.0,1.47420515]
[1641187138455,0.008609,46823.0,46822.0,1.57420515]
[1641187139457,0.008609,46823.0,46822.0,1.37420515]
[1641187144744,0.008609,46823.0,46822.0,1.58420515]
[1641187151754,0.00831866,46826.0,46822.0,1.58420515]
[1641187151953,0.00831866,46826.0,46824.0,0.05338778]
[1641187152249,0.007,46831.0,46825.0,1.31058208]
[1641187152449,0.007,46831.0,46827.0,0.24435765]
[1641187152650,0.007,46831.0,46828.0,0.64564]
[1641187153049,0.007,46831.0,46828.0,0.699027]
[1641187153452,0.02214933,46833.0,46828.0,0.699027]
[1641187153650,0.02214933,46833.0,46830.0,0.05338612]
[1641187153850,0.02214933,46833.0,46831.0,0.6456]
[1641187154352,0.07553633,46833.0,46831.0,0.6456]
[1641187160241,0.08253633,46833.0,46831.0,0.6456]
[1641187162243,1.21070813,46832.0,46831.0,0.6456]
[1641187162510,0.08253633,46833.0,46831.0,0.6456]
[1641187163509,0.02914933,46833.0,46831.0,0.6456]
[1641187165311,0.053388,46832.0,46831.0,0.6456]
[1641187178200,0.03741433,46835.0,46831.0,0.6456]
[1641187179100,1.21069981,46834.0,46831.0,0.6456]
[1641187179301,0.00861,46833.0,46831.0,0.6456]
[1641187179701,0.062001,46833.0,46831.0,0.6456]
[1641187180803,0.71848303,46832.0,46831.0,0.6456]
[1641187181265,0.062001,46833.0,46831.0,0.6456]
[1641187182259,0.71816636,46832.0,46831.0,0.6456]
[1641187182657,0.062001,46833.0,46831.0,0.6456]
[1641187183663,0.71800753,46832.0,46831.0,0.6456]
[1641187185709,0.71800753,46832.0,46831.0,0.96259761]
[1641187185902,0.71800753,46832.0,46831.0,1.39032452]
[1641187186102,0.71800753,46832.0,46831.0,1.040313]
[1641187186304,0.59864411,46832.0,46831.0,1.040313]
[1641187186503,0.59864411,46832.0,46831.0,1.35054335]
[1641187187104,0.00861,46833.0,46831.0,1.35054335]
[1641187187306,0.00861,46833.0,46832.0,0.346813]
[1641187187602,0.00861,46833.0,46832.0,1.040303]
[1641187187802,0.00861,46833.0,46832.0,1.40367451]
[1641187188405,0.7098214,46837.0,46832.0,1.40367451]
[1641187188606,0.7098214,46837.0,46833.0,0.25646193]
[1641187188862,0.7098214,46837.0,46836.0,0.34811029]
[1641187189065,0.11117729,46837.0,46836.0,1.46042498]
[1641187189562,0.11117729,46837.0,46836.0,1.81540379]
[1641187194298,0.11117729,46837.0,46836.0,2.02540379]
[1641187196545,0.11117729,46837.0,46836.0,3.26313879]
[1641187197946,0.11117729,46837.0,46836.0,2.13213879]
[1641187199548,0.11117729,46837.0,46836.0,2.63213879]
[1641187200297,0.10617729,46837.0,46836.0,2.63213879]
[1641187201896,0.10617729,46837.0,46836.0,2.2632541]
[1641187204046,0.10617729,46837.0,46836.0,3.3942541]
[1641187205447,0.10617729,46837.0,46836.0,2.2632541]
[1641187205848,0.10617729,46837.0,46836.0,2.3132541]
[1641187206852,0.10617729,46837.0,46836.0,2.8132541]
[1641187211855,0.10617729,46837.0,46836.0,2.7632541]
[1641187215102,0.10617729,46837.0,46836.0,2.2632541]
[1641187215903,0.10617729,46837.0,46836.0,2.7632541]
[1641187217908,0.10617729,46837.0,46836.0,2.40827529]
[1641187218509,0.10617729,46837.0,46836.0,2.30154029]
[1641187218959,0.10617729,46837.0,46836.0,2.35154029]
[1641187220962,0.10617729,46837.0,46836.0,2.30364029]
[1641187221365,0.10617729,46837.0,46836.0,2.30482768]
[1641187221966,0.10617729,46837.0,46836.0,1.80482768]
[1641187222611,0.10617729,46837.0,46836.0,2.30353039]
[1641187224015,0.10617729,46837.0,46836.0,2.20353039]
[1641187224215,0.10617729,46837.0,46836.0,1.35671739]
[1641187225110,0.13501038,46837.0,46836.0,1.35671739]
[1641187226110,0.10617729,46837.0,46836.0,1.35671739]
[1641187228152,1.13440647,46837.0,46836.0,1.35671739]
[1641187228552,0.82418482,46837.0,46836.0,1.35671739]
[1641187229454,0.10617729,46837.0,46836.0,1.35671739]
[1641187230907,0.42037273,46837.0,46836.0,1.35671739]
[1641187231510,0.10617729,46837.0,46836.0,1.32671739]
[1641187231709,0.10617729,46837.0,46836.0,1.29671739]
[1641187235247,0.10617729,46837.0,46836.0,1.29371739]
[1641187235648,0.10617729,46837.0,46836.0,1.29071739]
[1641187236147,0.10617729,46837.0,46836.0,1.28471739]
[1641187236348,0.10717729,46837.0,46836.0,1.28471739]
[1641187236548,0.10717729,46837.0,46836.0,1.28171739]
[1641187236747,0.10717729,46837.0,46836.0,1.27571739]
[1641187236947,0.10717729,46837.0,46836.0,1.27271739]
[1641187237148,0.10717729,46837.0,46836.0,1.26971739]
[1641187237600,0.10617729,46837.0,46836.0,1.26971739]
[1641187238198,0.10717729,46837.0,46836.0,1.26971739]
[1641187239400,0.10617729,46837.0,46836.0,1.26971739]
[1641187240401,0.10717729,46837.0,46836.0,1.26971739]
[1641187241355,0.10617729,46837.0,46836.0,1.26971739]
[1641187241759,0.41621268,46837.0,46836.0,1.26971739]
[1641187242356,0.41721268,46837.0,46836.0,1.26971739]